[Event "*** SCC Grand Prix: Titled Tuesday Blitz"]
[Site "Chess.com"]
[Date "2020.08.25"]
[Round "3"]
[White "Steven_Rojas"]
[Black "ZarinaShafigullina"]
[Result "0-1"]
[WhiteElo "2493"]
[BlackElo "2298"]
[TimeControl "180+1"]
[EndTime "10:31:19 PDT"]
[Termination "ZarinaShafigullina won by resignation"]

1. c4 {[%clk 0:03:00.9]} 1... Nf6 {[%clk 0:02:58.6]} 2. Nc3 {[%clk 0:03:00.6]}
2... e6 {[%clk 0:02:58.4]} 3. e4 {[%clk 0:03:00.2]} 3... c5 {[%clk 0:02:57.4]}
4. Nf3 {[%clk 0:02:43.9]} 4... Nc6 {[%clk 0:02:56.7]} 5. Be2 {[%clk 0:02:44.5]}
5... d5 {[%clk 0:02:51.1]} 6. exd5 {[%clk 0:02:44.7]} 6... exd5 {[%clk 0:02:51]}
7. d4 {[%clk 0:02:45.3]} 7... cxd4 {[%clk 0:02:46.2]} 8. Nxd4 {[%clk 0:02:42.6]}
8... Nxd4 {[%clk 0:02:40.8]} 9. Qxd4 {[%clk 0:02:41.3]} 9... dxc4 {[%clk
0:02:41.3]} 10. Qxd8+ {[%clk 0:02:27.6]} 10... Kxd8 {[%clk 0:02:41.2]} 11. Bxc4
{[%clk 0:02:27.8]} 11... Be6 {[%clk 0:02:35.7]} 12. Bxe6 {[%clk 0:02:23.6]}
12... fxe6 {[%clk 0:02:36.6]} 13. Bf4 {[%clk 0:02:14.7]} 13... Bb4 {[%clk
0:02:35.5]} 14. O-O-O+ {[%clk 0:02:14.1]} 14... Ke7 {[%clk 0:02:35.2]} 15. Be5
{[%clk 0:02:05.2]} 15... Rac8 {[%clk 0:02:31]} 16. Kb1 {[%clk 0:01:58.6]} 16...
Rhd8 {[%clk 0:02:28.7]} 17. f3 {[%clk 0:01:51.5]} 17... a6 {[%clk 0:02:20]} 18.
a3 {[%clk 0:01:31.5]} 18... Bd6 {[%clk 0:02:19]} 19. Bxd6+ {[%clk 0:01:25.3]}
19... Rxd6 {[%clk 0:02:18.9]} 20. Rxd6 {[%clk 0:01:26.2]} 20... Kxd6 {[%clk
0:02:19.3]} 21. Re1 {[%clk 0:01:25.3]} 21... Rc4 {[%clk 0:02:14.9]} 22. Kc2
{[%clk 0:01:23.9]} 22... e5 {[%clk 0:01:47.2]} 23. Kb3 {[%clk 0:01:07.3]} 23...
Rd4 {[%clk 0:01:45.9]} 24. Re2 {[%clk 0:01:07.8]} 24... g5 {[%clk 0:01:40.3]}
25. h3 {[%clk 0:01:07.2]} 25... h5 {[%clk 0:01:39.7]} 26. Ne4+ {[%clk
0:00:43.6]} 26... Nxe4 {[%clk 0:01:35.3]} 27. fxe4 {[%clk 0:00:42.8]} 27... Rd3+
{[%clk 0:00:50]} 28. Kc4 {[%clk 0:00:42]} 28... Rg3 {[%clk 0:00:49.2]} 29. a4
{[%clk 0:00:38.1]} 29... b6 {[%clk 0:00:42.5]} 30. b4 {[%clk 0:00:36.9]} 30...
Ra3 {[%clk 0:00:39.6]} 31. Rf2 {[%clk 0:00:37]} 31... Ke6 {[%clk 0:00:39.3]} 32.
Rf1 {[%clk 0:00:28.8]} 32... Re3 {[%clk 0:00:24.5]} 33. Rf8 {[%clk 0:00:19.6]}
33... Rxe4+ {[%clk 0:00:24.8]} 34. Kc3 {[%clk 0:00:20.5]} 34... Re3+ {[%clk
0:00:22.7]} 35. Kc4 {[%clk 0:00:20.3]} 35... Re4+ {[%clk 0:00:22.4]} 36. Kc3
{[%clk 0:00:20.3]} 36... b5 {[%clk 0:00:15.9]} 37. axb5 {[%clk 0:00:10.2]} 37...
axb5 {[%clk 0:00:15.8]} 38. Rb8 {[%clk 0:00:10.7]} 38... Re3+ {[%clk 0:00:14]}
39. Kd2 {[%clk 0:00:11]} 39... Rg3 {[%clk 0:00:13.7]} 40. Rxb5 {[%clk
0:00:10.8]} 40... Rxg2+ {[%clk 0:00:14]} 41. Ke3 {[%clk 0:00:11.4]} 41... Rg3+
{[%clk 0:00:14.3]} 42. Ke4 {[%clk 0:00:11.9]} 42... Rxh3 {[%clk 0:00:14.2]} 43.
Rxe5+ {[%clk 0:00:12.4]} 43... Kf6 {[%clk 0:00:14.6]} 44. Rf5+ {[%clk
0:00:12.9]} 44... Kg6 {[%clk 0:00:14.9]} 45. Rb5 {[%clk 0:00:11.4]} 45... h4
{[%clk 0:00:13.7]} 46. Rb8 {[%clk 0:00:11.3]} 46... Rb3 {[%clk 0:00:13.1]} 47.
b5 {[%clk 0:00:11.2]} 47... h3 {[%clk 0:00:12.5]} 48. b6 {[%clk 0:00:10.6]}
48... g4 {[%clk 0:00:03.6]} 49. Kf4 {[%clk 0:00:09.2]} 49... h2 {[%clk
0:00:03.4]} 50. Rh8 {[%clk 0:00:09.2]} 50... Rh3 {[%clk 0:00:03.4]} 51. Rg8+
{[%clk 0:00:02.6]} 51... Kf7 {[%clk 0:00:03.3]} 52. Rf8+ {[%clk 0:00:01.4]}
52... Kxf8 {[%clk 0:00:02.6]} 53. b7 {[%clk 0:00:01.7]} 53... Rb3 {[%clk
0:00:03.3]} 54. b8=Q+ {[%clk 0:00:02.6]} 54... Rxb8 {[%clk 0:00:03.6]} 0-1

[Event "*** SCC Grand Prix: Titled Tuesday Blitz"]
[Site "Chess.com"]
[Date "2020.08.25"]
[Round "3"]
[White "GigaQuparadze"]
[Black "UCantHandleDenker"]
[Result "1-0"]
[WhiteElo "2821"]
[BlackElo "2573"]
[TimeControl "180+1"]
[EndTime "10:31:27 PDT"]
[Termination "GigaQuparadze won by resignation"]

1. e3 {[%clk 0:03:00.9]} 1... Nf6 {[%clk 0:02:59]} 2. f4 {[%clk 0:03:00.5]} 2...
g6 {[%clk 0:02:59]} 3. Nf3 {[%clk 0:03:00.7]} 3... Bg7 {[%clk 0:02:59.9]} 4. d4
{[%clk 0:03:00.8]} 4... O-O {[%clk 0:03:00.8]} 5. c4 {[%clk 0:03:01]} 5... c5
{[%clk 0:03:00.8]} 6. Nc3 {[%clk 0:03:00.7]} 6... cxd4 {[%clk 0:02:57.9]} 7.
exd4 {[%clk 0:03:00.4]} 7... d5 {[%clk 0:02:58.1]} 8. c5 {[%clk 0:03:00.7]} 8...
b6 {[%clk 0:02:55.9]} 9. cxb6 {[%clk 0:02:59.5]} 9... axb6 {[%clk 0:02:55.5]}
10. Bd3 {[%clk 0:02:58.9]} 10... Nc6 {[%clk 0:02:55.2]} 11. Bb5 {[%clk
0:02:57.7]} 11... Qd6 {[%clk 0:02:43]} 12. Ne5 {[%clk 0:02:53.9]} 12... Na5
{[%clk 0:02:34.1]} 13. O-O {[%clk 0:02:52.1]} 13... Bf5 {[%clk 0:02:33.5]} 14.
a4 {[%clk 0:02:46.2]} 14... Ne4 {[%clk 0:02:32.4]} 15. Nxe4 {[%clk 0:02:45.8]}
15... Bxe4 {[%clk 0:02:32.5]} 16. b4 {[%clk 0:02:39.9]} 16... Qxb4 {[%clk
0:02:22.3]} 17. Ba3 {[%clk 0:02:36.9]} 17... Qc3 {[%clk 0:02:22.1]} 18. Bxe7
{[%clk 0:02:34.4]} 18... Rfc8 {[%clk 0:02:20.1]} 19. Ra3 {[%clk 0:02:30.7]}
19... Qb2 {[%clk 0:01:54.2]} 20. Rf2 {[%clk 0:02:28.3]} 20... Rc1 {[%clk
0:01:52.6]} 21. Rxb2 {[%clk 0:02:21]} 21... Rxd1+ {[%clk 0:01:52.5]} 22. Kf2
{[%clk 0:02:20.3]} 22... Rxd4 {[%clk 0:01:50.7]} 23. g3 {[%clk 0:02:19.7]} 23...
Nc4 {[%clk 0:01:42.5]} 24. Bxc4 {[%clk 0:02:16.9]} 24... dxc4 {[%clk 0:01:43.4]}
25. Ke3 {[%clk 0:02:14.6]} 25... c3 {[%clk 0:01:29.5]} 26. Rxc3 {[%clk
0:02:11.1]} 26... Rdxa4 {[%clk 0:01:27]} 27. Rxb6 {[%clk 0:02:10.3]} 27... Bd5
{[%clk 0:01:24.4]} 28. Bf6 {[%clk 0:02:04.8]} 28... Bxf6 {[%clk 0:01:19.3]} 29.
Rxf6 {[%clk 0:02:05.7]} 29... Be6 {[%clk 0:01:18.3]} 30. Rc7 {[%clk 0:02:01.4]}
30... R4a7 {[%clk 0:01:05.2]} 31. Rc6 {[%clk 0:01:46.6]} 31... Ra3+ {[%clk
0:00:57.4]} 32. Kd2 {[%clk 0:01:46.3]} 32... Ra2+ {[%clk 0:00:57.1]} 33. Ke3
{[%clk 0:01:46.7]} 33... R8a3+ {[%clk 0:00:56]} 34. Kd4 {[%clk 0:01:47]} 34...
Rd2+ {[%clk 0:00:55]} 35. Kc5 {[%clk 0:01:46.9]} 35... Rc2+ {[%clk 0:00:53.7]}
36. Kd6 {[%clk 0:01:45.6]} 36... Rxc6+ {[%clk 0:00:52.8]} 37. Nxc6 {[%clk
0:01:45.6]} 37... Rd3+ {[%clk 0:00:37.7]} 38. Ke7 {[%clk 0:01:34.5]} 38... Rd7+
{[%clk 0:00:35.9]} 39. Ke8 {[%clk 0:01:34]} 39... Rd6 {[%clk 0:00:27.3]} 40. Ne5
{[%clk 0:01:14.2]} 40... Ra6 {[%clk 0:00:14.7]} 41. g4 {[%clk 0:01:05.1]} 41...
Kg7 {[%clk 0:00:13.9]} 42. g5 {[%clk 0:01:05]} 42... Ra8+ {[%clk 0:00:12.1]} 43.
Ke7 {[%clk 0:01:05]} 43... Ra7+ {[%clk 0:00:12.8]} 44. Kd6 {[%clk 0:01:04.9]}
44... Ra6+ {[%clk 0:00:13.3]} 45. Ke7 {[%clk 0:01:02.7]} 45... Ra7+ {[%clk
0:00:13.3]} 46. Kd6 {[%clk 0:01:03]} 46... Ra6+ {[%clk 0:00:13.9]} 47. Nc6
{[%clk 0:01:03.2]} 47... Ra2 {[%clk 0:00:12.1]} 48. h4 {[%clk 0:01:03.3]} 48...
Rd2+ {[%clk 0:00:11.7]} 49. Ke7 {[%clk 0:01:01.1]} 49... Rd7+ {[%clk 0:00:12.1]}
50. Ke8 {[%clk 0:01:01.3]} 50... Rd6 {[%clk 0:00:12.5]} 51. Nd8 {[%clk 0:00:58]}
51... Ra6 {[%clk 0:00:02.8]} 52. Nxe6+ {[%clk 0:00:54.6]} 52... fxe6 {[%clk
0:00:03.7]} 53. Ke7 {[%clk 0:00:54.6]} 53... h6 {[%clk 0:00:01.9]} 54. Rf7+
{[%clk 0:00:47.1]} 54... Kg8 {[%clk 0:00:01.2]} 55. Rf8+ {[%clk 0:00:46.7]}
55... Kg7 {[%clk 0:00:01.4]} 56. Rf7+ {[%clk 0:00:47.5]} 56... Kg8 {[%clk
0:00:02]} 57. Rf6 {[%clk 0:00:48.4]} 57... Kg7 {[%clk 0:00:01.8]} 58. Rxe6
{[%clk 0:00:48.3]} 58... Ra7+ {[%clk 0:00:02.4]} 59. Ke8 {[%clk 0:00:48.3]}
59... hxg5 {[%clk 0:00:03.3]} 60. hxg5 {[%clk 0:00:47.1]} 60... Ra8+ {[%clk
0:00:04.2]} 61. Kd7 {[%clk 0:00:47]} 61... Ra7+ {[%clk 0:00:05.1]} 62. Kd6
{[%clk 0:00:47]} 62... Ra4 {[%clk 0:00:06]} 63. Ke5 {[%clk 0:00:44.3]} 63... Kf7
{[%clk 0:00:05.6]} 64. Rf6+ {[%clk 0:00:44.3]} 64... Kg7 {[%clk 0:00:06.2]} 65.
Rd6 {[%clk 0:00:44.9]} 65... Ra5+ {[%clk 0:00:06.3]} 66. Rd5 {[%clk 0:00:45.2]}
66... Ra7 {[%clk 0:00:06.8]} 67. Ke6 {[%clk 0:00:45]} 67... Ra6+ {[%clk
0:00:06.3]} 68. Rd6 {[%clk 0:00:45]} 68... Ra4 {[%clk 0:00:05.8]} 69. Rd7+
{[%clk 0:00:44.3]} 69... Kg8 {[%clk 0:00:06.4]} 70. Ke5 {[%clk 0:00:40.1]} 70...
Ra6 {[%clk 0:00:05.3]} 71. Rd6 {[%clk 0:00:38.7]} 71... Ra5+ {[%clk 0:00:05.6]}
72. Kf6 {[%clk 0:00:39.1]} 72... Rf5+ {[%clk 0:00:05.8]} 73. Kxg6 {[%clk
0:00:39.4]} 73... Rxf4 {[%clk 0:00:05.7]} 74. Rd8+ {[%clk 0:00:39.5]} 74... Rf8
{[%clk 0:00:06.4]} 75. Rxf8+ {[%clk 0:00:39.5]} 75... Kxf8 {[%clk 0:00:07.3]}
1-0

[Event "*** SCC Grand Prix: Titled Tuesday Blitz"]
[Site "Chess.com"]
[Date "2020.08.25"]
[Round "3"]
[White "AlexSuv"]
[Black "MVM2008"]
[Result "1-0"]
[WhiteElo "2486"]
[BlackElo "2223"]
[TimeControl "180+1"]
[EndTime "10:31:28 PDT"]
[Termination "AlexSuv won on time"]

1. d4 {[%clk 0:03:00.9]} 1... Nf6 {[%clk 0:02:58.6]} 2. c4 {[%clk 0:03:00.2]}
2... d5 {[%clk 0:02:54.8]} 3. Nc3 {[%clk 0:02:58.7]} 3... e6 {[%clk 0:02:53.4]}
4. cxd5 {[%clk 0:02:58.4]} 4... exd5 {[%clk 0:02:53.6]} 5. Bg5 {[%clk
0:02:58.5]} 5... Bb4 {[%clk 0:02:49.9]} 6. e3 {[%clk 0:02:57.7]} 6... O-O {[%clk
0:02:47.9]} 7. Bd3 {[%clk 0:02:56.5]} 7... c6 {[%clk 0:02:44.5]} 8. Qc2 {[%clk
0:02:52.8]} 8... h6 {[%clk 0:02:36.6]} 9. Bh4 {[%clk 0:02:52.7]} 9... Re8 {[%clk
0:02:28.1]} 10. Nf3 {[%clk 0:02:48]} 10... Nbd7 {[%clk 0:02:26]} 11. O-O {[%clk
0:02:46.1]} 11... Bd6 {[%clk 0:02:22.4]} 12. a3 {[%clk 0:02:42.4]} 12... a6
{[%clk 0:02:18.8]} 13. b4 {[%clk 0:02:30.9]} 13... b5 {[%clk 0:02:10.3]} 14. e4
{[%clk 0:02:23.3]} 14... dxe4 {[%clk 0:02:09.3]} 15. Nxe4 {[%clk 0:02:23]} 15...
Be7 {[%clk 0:02:05.6]} 16. Qxc6 {[%clk 0:02:15.4]} 16... Rb8 {[%clk 0:02:01.2]}
17. Nxf6+ {[%clk 0:02:12.1]} 17... Nxf6 {[%clk 0:01:52.3]} 18. Qc2 {[%clk
0:01:51.5]} 18... Bb7 {[%clk 0:01:46.8]} 19. Qd1 {[%clk 0:01:24.2]} 19... Qd5
{[%clk 0:01:24.5]} 20. Re1 {[%clk 0:01:18.4]} 20... Bd6 {[%clk 0:00:55]} 21. Bg3
{[%clk 0:00:46.3]} 21... Bxg3 {[%clk 0:00:44.4]} 22. hxg3 {[%clk 0:00:46.2]}
22... Ng4 {[%clk 0:00:39]} 23. Be2 {[%clk 0:00:24.9]} 23... Rbd8 {[%clk
0:00:16.3]} 24. Rc1 {[%clk 0:00:24.6]} 24... Nf6 {[%clk 0:00:14.4]} 25. Rc5
{[%clk 0:00:24]} 25... Qd6 {[%clk 0:00:13.9]} 26. Qc1 {[%clk 0:00:21.2]} 26...
Ne4 {[%clk 0:00:13.8]} 27. Re5 {[%clk 0:00:20.3]} 27... Rxe5 {[%clk 0:00:12.5]}
28. dxe5 {[%clk 0:00:20.9]} 28... Qb6 {[%clk 0:00:12.6]} 29. Qe3 {[%clk
0:00:18]} 29... Qxe3 {[%clk 0:00:12.1]} 30. fxe3 {[%clk 0:00:18.7]} 30... Nc3
{[%clk 0:00:11.5]} 31. Bf1 {[%clk 0:00:17.5]} 31... Rd1 {[%clk 0:00:10.1]} 32.
Rxd1 {[%clk 0:00:13.4]} 32... Nxd1 {[%clk 0:00:09.4]} 33. Nd4 {[%clk 0:00:13.5]}
33... Nxe3 {[%clk 0:00:09]} 34. Nb3 {[%clk 0:00:13.2]} 34... Nc4 {[%clk
0:00:07.1]} 35. Nc5 {[%clk 0:00:11.5]} 35... Bc8 {[%clk 0:00:06.2]} 36. Bxc4
{[%clk 0:00:11.5]} 36... bxc4 {[%clk 0:00:06.3]} 37. Kf2 {[%clk 0:00:12.1]}
37... f6 {[%clk 0:00:04.4]} 38. exf6 {[%clk 0:00:10.7]} 38... gxf6 {[%clk
0:00:04.9]} 39. Ke3 {[%clk 0:00:11.4]} 39... Kg7 {[%clk 0:00:03.7]} 40. Kd4
{[%clk 0:00:11.8]} 40... Kg6 {[%clk 0:00:04.1]} 41. Kxc4 {[%clk 0:00:11.5]}
41... Kf5 {[%clk 0:00:03.5]} 42. a4 {[%clk 0:00:10]} 42... Kg4 {[%clk
0:00:03.4]} 43. Ne4 {[%clk 0:00:10.3]} 43... f5 {[%clk 0:00:01.8]} 44. Nd6
{[%clk 0:00:09.8]} 44... Be6+ {[%clk 0:00:02]} 45. Kd4 {[%clk 0:00:09.9]} 45...
Kxg3 {[%clk 0:00:02.9]} 46. b5 {[%clk 0:00:10.4]} 46... axb5 {[%clk 0:00:02.5]}
47. axb5 {[%clk 0:00:11.1]} 47... Bd7 {[%clk 0:00:02.9]} 48. b6 {[%clk
0:00:10.3]} 48... Bc6 {[%clk 0:00:03.3]} 49. Nxf5+ {[%clk 0:00:10.8]} 49... Kxg2
{[%clk 0:00:03.2]} 50. Nxh6 {[%clk 0:00:11.4]} 50... Kf3 {[%clk 0:00:03.2]} 51.
Nf7 {[%clk 0:00:11.6]} 51... Kf4 {[%clk 0:00:02.8]} 52. Kc5 {[%clk 0:00:11.2]}
52... Bb7 {[%clk 0:00:02.1]} 53. Nd8 {[%clk 0:00:11.3]} 53... Ba8 {[%clk
0:00:02.3]} 54. Kd6 {[%clk 0:00:11.5]} 54... Kf5 {[%clk 0:00:02.5]} 55. Kc7
{[%clk 0:00:12]} 55... Ke5 {[%clk 0:00:02.9]} 56. Nb7 {[%clk 0:00:11.6]} 56...
Ke6 {[%clk 0:00:02.3]} 57. Kb8 {[%clk 0:00:11.7]} 57... Kd7 {[%clk 0:00:01.9]}
58. Kxa8 {[%clk 0:00:11.6]} 58... Kc8 {[%clk 0:00:02.8]} 59. Ka7 {[%clk
0:00:12]} 1-0

[Event "*** SCC Grand Prix: Titled Tuesday Blitz"]
[Site "Chess.com"]
[Date "2020.08.25"]
[Round "3"]
[White "alexrustemov"]
[Black "colegiodemadrid"]
[Result "0-1"]
[WhiteElo "2646"]
[BlackElo "2417"]
[TimeControl "180+1"]
[EndTime "10:31:32 PDT"]
[Termination "colegiodemadrid won on time"]

1. d4 {[%clk 0:03:00.9]} 1... d5 {[%clk 0:02:58.3]} 2. c4 {[%clk 0:03:00.5]}
2... c6 {[%clk 0:02:57.6]} 3. Nc3 {[%clk 0:02:59.8]} 3... Nf6 {[%clk 0:02:57.7]}
4. e3 {[%clk 0:02:59.5]} 4... Bf5 {[%clk 0:02:53.8]} 5. cxd5 {[%clk 0:02:59.2]}
5... cxd5 {[%clk 0:02:52]} 6. Qb3 {[%clk 0:02:59.6]} 6... Nc6 {[%clk 0:02:46.4]}
7. Qxb7 {[%clk 0:02:57.9]} 7... Bd7 {[%clk 0:02:46.2]} 8. Qb3 {[%clk 0:02:57.2]}
8... e5 {[%clk 0:02:45.1]} 9. dxe5 {[%clk 0:02:46.3]} 9... Nxe5 {[%clk 0:02:46]}
10. Be2 {[%clk 0:02:43.8]} 10... Rb8 {[%clk 0:02:43.5]} 11. Qd1 {[%clk
0:02:41.8]} 11... Bb4 {[%clk 0:02:43]} 12. Bd2 {[%clk 0:02:33.5]} 12... O-O
{[%clk 0:02:40.4]} 13. Nf3 {[%clk 0:02:33.3]} 13... Nxf3+ {[%clk 0:02:37.7]} 14.
Bxf3 {[%clk 0:02:33.4]} 14... d4 {[%clk 0:02:38.1]} 15. exd4 {[%clk 0:02:29.7]}
15... Re8+ {[%clk 0:02:37.4]} 16. Ne2 {[%clk 0:02:29.3]} 16... Bb5 {[%clk
0:02:34]} 17. O-O {[%clk 0:02:17.8]} 17... Bxe2 {[%clk 0:02:21.9]} 18. Bxe2
{[%clk 0:02:17]} 18... Qxd4 {[%clk 0:02:22.4]} 19. Be3 {[%clk 0:01:43.8]} 19...
Qxb2 {[%clk 0:02:10.2]} 20. Bc4 {[%clk 0:01:42.1]} 20... Qe5 {[%clk 0:02:06.5]}
21. Bxa7 {[%clk 0:01:25.4]} 21... Rbd8 {[%clk 0:02:06.2]} 22. Qb3 {[%clk
0:01:18.8]} 22... Qe7 {[%clk 0:02:03.9]} 23. Be3 {[%clk 0:01:06.3]} 23... Ng4
{[%clk 0:01:59.3]} 24. Bxf7+ {[%clk 0:01:02.2]} 24... Qxf7 {[%clk 0:01:54.7]}
25. Qxb4 {[%clk 0:01:01.7]} 25... Nxe3 {[%clk 0:01:53.1]} 26. fxe3 {[%clk
0:01:02.6]} 26... Qd5 {[%clk 0:01:53.6]} 27. Rf3 {[%clk 0:00:53.6]} 27... Re4
{[%clk 0:01:53.3]} 28. Qb3 {[%clk 0:00:49.2]} 28... Qxb3 {[%clk 0:01:42.3]} 29.
axb3 {[%clk 0:00:50.1]} 29... h6 {[%clk 0:01:42.7]} 30. Rb1 {[%clk 0:00:47.8]}
30... Rb8 {[%clk 0:01:39.4]} 31. Rf2 {[%clk 0:00:27.3]} 31... Rxe3 {[%clk
0:01:38]} 32. b4 {[%clk 0:00:27.2]} 32... Re5 {[%clk 0:01:35.8]} 33. Rfb2 {[%clk
0:00:26.7]} 33... Reb5 {[%clk 0:01:34.9]} 34. Kf2 {[%clk 0:00:27.1]} 34... Re8
{[%clk 0:01:31.5]} 35. Re2 {[%clk 0:00:25.2]} 35... Rc8 {[%clk 0:01:27.9]} 36.
Ke3 {[%clk 0:00:20]} 36... Re5+ {[%clk 0:01:23.6]} 37. Kf2 {[%clk 0:00:19]}
37... Rb5 {[%clk 0:01:19.9]} 38. Ke1 {[%clk 0:00:17.8]} 38... Rc4 {[%clk
0:01:17.8]} 39. Reb2 {[%clk 0:00:17.5]} 39... h5 {[%clk 0:01:06.1]} 40. Kd2
{[%clk 0:00:18]} 40... Rh4 {[%clk 0:00:53.8]} 41. h3 {[%clk 0:00:17.2]} 41... g5
{[%clk 0:00:52.8]} 42. Kc3 {[%clk 0:00:17.1]} 42... g4 {[%clk 0:00:50.3]} 43.
Kc4 {[%clk 0:00:14.9]} 43... Rb8 {[%clk 0:00:43.9]} 44. hxg4 {[%clk 0:00:15.1]}
44... Rxg4+ {[%clk 0:00:42.8]} 45. Kc5 {[%clk 0:00:15.7]} 45... Rg5+ {[%clk
0:00:39.8]} 46. Kc4 {[%clk 0:00:13.7]} 46... Rc8+ {[%clk 0:00:37]} 47. Kb3
{[%clk 0:00:13.4]} 47... Rg3+ {[%clk 0:00:33.2]} 48. Ka4 {[%clk 0:00:13.5]}
48... Ra8+ {[%clk 0:00:30.2]} 49. Kb5 {[%clk 0:00:13.8]} 49... Rg5+ {[%clk
0:00:29.7]} 50. Kc6 {[%clk 0:00:14.1]} 50... Ra6+ {[%clk 0:00:23.3]} 51. Kb7
{[%clk 0:00:14.1]} 51... Re6 {[%clk 0:00:22.2]} 52. Rc1 {[%clk 0:00:11.5]} 52...
Rb5+ {[%clk 0:00:17.9]} 53. Ka7 {[%clk 0:00:10]} 53... Re4 {[%clk 0:00:18.3]}
54. Rcb1 {[%clk 0:00:09.3]} 54... Re6 {[%clk 0:00:15.2]} 55. Rc1 {[%clk
0:00:06.9]} 55... Re4 {[%clk 0:00:15.1]} 56. Rcb1 {[%clk 0:00:05.1]} 56... Re6
{[%clk 0:00:14.7]} 57. Rb3 {[%clk 0:00:05.3]} 57... Kg7 {[%clk 0:00:14.2]} 58.
Rc1 {[%clk 0:00:04.1]} 58... Re4 {[%clk 0:00:13.9]} 59. Rcb1 {[%clk 0:00:03.9]}
59... Re6 {[%clk 0:00:13.5]} 60. R1b2 {[%clk 0:00:02.4]} 60... Kg6 {[%clk
0:00:12.8]} 61. Rc3 {[%clk 0:00:02.2]} 61... Re4 {[%clk 0:00:12.2]} 62. Rg3+
{[%clk 0:00:02.1]} 62... Kh6 {[%clk 0:00:11.5]} 63. Rgb3 {[%clk 0:00:02.6]}
63... Kg5 {[%clk 0:00:11.2]} 0-1

[Event "*** SCC Grand Prix: Titled Tuesday Blitz"]
[Site "Chess.com"]
[Date "2020.08.25"]
[Round "3"]
[White "RaunakSadhwani2005"]
[Black "Violord"]
[Result "0-1"]
[WhiteElo "2851"]
[BlackElo "2639"]
[TimeControl "180+1"]
[EndTime "10:31:37 PDT"]
[Termination "Violord won by resignation"]

1. e4 {[%clk 0:03:00.9]} 1... g6 {[%clk 0:02:57.9]} 2. d4 {[%clk 0:03:00.8]}
2... Bg7 {[%clk 0:02:57.8]} 3. Nf3 {[%clk 0:02:59.7]} 3... d6 {[%clk 0:02:56.7]}
4. Bc4 {[%clk 0:02:59.7]} 4... Nf6 {[%clk 0:02:54.5]} 5. Qe2 {[%clk 0:03:00]}
5... Nc6 {[%clk 0:02:52.7]} 6. e5 {[%clk 0:02:52.3]} 6... dxe5 {[%clk
0:02:51.8]} 7. dxe5 {[%clk 0:02:53.2]} 7... Ng4 {[%clk 0:02:50.9]} 8. e6 {[%clk
0:02:50.6]} 8... f5 {[%clk 0:02:48.5]} 9. O-O {[%clk 0:02:42.3]} 9... Qd6 {[%clk
0:02:43]} 10. g3 {[%clk 0:02:41.7]} 10... Nce5 {[%clk 0:02:17.2]} 11. Nxe5
{[%clk 0:02:27]} 11... Qxe5 {[%clk 0:02:15.7]} 12. Re1 {[%clk 0:02:04.8]} 12...
O-O {[%clk 0:02:05.6]} 13. Nc3 {[%clk 0:02:01.5]} 13... Qxe2 {[%clk 0:02:00.3]}
14. Rxe2 {[%clk 0:02:02.4]} 14... Ne5 {[%clk 0:01:59.6]} 15. Bb3 {[%clk
0:01:54.3]} 15... Nf3+ {[%clk 0:01:56.5]} 16. Kg2 {[%clk 0:01:54.1]} 16... Nd4
{[%clk 0:01:55.6]} 17. Re1 {[%clk 0:01:54.6]} 17... b6 {[%clk 0:01:50.6]} 18.
Bg5 {[%clk 0:00:53.8]} 18... Bb7+ {[%clk 0:01:47.1]} 19. Kf1 {[%clk 0:00:46]}
19... Rfe8 {[%clk 0:01:24.2]} 20. Red1 {[%clk 0:00:45.2]} 20... Nf3 {[%clk
0:01:15]} 21. h4 {[%clk 0:00:44.8]} 21... h6 {[%clk 0:01:11.6]} 22. Bf4 {[%clk
0:00:41.1]} 22... Nd4 {[%clk 0:01:01.6]} 23. Bxc7 {[%clk 0:00:33.8]} 23... Rac8
{[%clk 0:00:57.3]} 24. Bf4 {[%clk 0:00:33.6]} 24... Kh7 {[%clk 0:00:51.4]} 25.
Be3 {[%clk 0:00:33.6]} 25... Ba6+ {[%clk 0:00:39]} 26. Kg2 {[%clk 0:00:33.6]}
26... Bb7+ {[%clk 0:00:39.1]} 27. Kh3 {[%clk 0:00:34.1]} 27... Red8 {[%clk
0:00:31.4]} 28. Rd3 {[%clk 0:00:19.2]} 28... Ba6 {[%clk 0:00:24.2]} 29. Rd2
{[%clk 0:00:18.9]} 29... Nf3 {[%clk 0:00:24.3]} 30. Rd7 {[%clk 0:00:18.4]} 30...
g5 {[%clk 0:00:19.1]} 31. hxg5 {[%clk 0:00:18.4]} 31... hxg5 {[%clk 0:00:18.8]}
32. g4 {[%clk 0:00:18.3]} 32... f4 {[%clk 0:00:17.9]} 33. Bd5 {[%clk 0:00:16.8]}
33... Ne5 {[%clk 0:00:16.1]} 34. Rxd8 {[%clk 0:00:15.8]} 34... Rxd8 {[%clk
0:00:16.1]} 35. Bd4 {[%clk 0:00:15.4]} 35... Bf6 {[%clk 0:00:13]} 36. Re1 {[%clk
0:00:14.1]} 36... Nxg4 {[%clk 0:00:12.9]} 37. Kxg4 {[%clk 0:00:12.3]} 37... Bxd4
{[%clk 0:00:13]} 38. Rh1+ {[%clk 0:00:10.8]} 38... Kg7 {[%clk 0:00:12.6]} 39.
Be4 {[%clk 0:00:11.3]} 39... Bxc3 {[%clk 0:00:12.7]} 40. bxc3 {[%clk 0:00:09.3]}
40... Bc8 {[%clk 0:00:12.5]} 41. Bf5 {[%clk 0:00:09]} 41... Rd2 {[%clk
0:00:10.5]} 42. Rh7+ {[%clk 0:00:08.7]} 42... Kf6 {[%clk 0:00:09.7]} 43. Rf7+
{[%clk 0:00:08.7]} 43... Ke5 {[%clk 0:00:10.3]} 44. Rxe7 {[%clk 0:00:08.8]}
44... Rxf2 {[%clk 0:00:10.3]} 45. Kxg5 {[%clk 0:00:07.8]} 45... Rg2+ {[%clk
0:00:10]} 46. Bg4 {[%clk 0:00:08.3]} 46... f3 {[%clk 0:00:09.8]} 47. Rf7 {[%clk
0:00:07]} 47... Bxe6 {[%clk 0:00:09.9]} 48. Rxf3 {[%clk 0:00:05.2]} 48... Rxg4+
{[%clk 0:00:10]} 49. Kh6 {[%clk 0:00:05.8]} 49... Ra4 {[%clk 0:00:10.7]} 50.
Re3+ {[%clk 0:00:06]} 50... Kd6 {[%clk 0:00:11]} 51. Rd3+ {[%clk 0:00:06.6]}
51... Ke7 {[%clk 0:00:11.2]} 52. Re3 {[%clk 0:00:07]} 52... Rxa2 {[%clk
0:00:11.2]} 53. Rg3 {[%clk 0:00:07.3]} 53... Rxc2 {[%clk 0:00:11.1]} 54. Rg7+
{[%clk 0:00:08.2]} 54... Kd6 {[%clk 0:00:11.2]} 55. Rxa7 {[%clk 0:00:08.3]}
55... Rxc3 {[%clk 0:00:11.5]} 56. Kg5 {[%clk 0:00:09.2]} 56... Kc5 {[%clk
0:00:11.1]} 57. Kf4 {[%clk 0:00:09.7]} 57... Bc4 {[%clk 0:00:10.8]} 58. Ke4
{[%clk 0:00:09.6]} 58... b5 {[%clk 0:00:10.4]} 59. Rc7+ {[%clk 0:00:09.9]} 59...
Kb4 {[%clk 0:00:10.5]} 60. Kd4 {[%clk 0:00:10]} 60... Rd3+ {[%clk 0:00:10.5]}
61. Ke4 {[%clk 0:00:10.7]} 61... Rh3 {[%clk 0:00:11]} 62. Kd4 {[%clk 0:00:10.8]}
62... Rh4+ {[%clk 0:00:10.4]} 63. Ke3 {[%clk 0:00:11.3]} 63... Kc3 {[%clk
0:00:10.4]} 64. Rg7 {[%clk 0:00:10.6]} 64... b4 {[%clk 0:00:09.6]} 65. Rg1
{[%clk 0:00:11.5]} 65... b3 {[%clk 0:00:09.1]} 66. Rc1+ {[%clk 0:00:12.1]} 66...
Kb4 {[%clk 0:00:09.2]} 67. Rh1 {[%clk 0:00:12.3]} 67... Rxh1 {[%clk 0:00:07.9]}
0-1